bitfinex/quotes_BTCUSD_20250615
["timestamp","ask_amount","ask_price","bid_price","bid_amount"]
[1749974854093,1.17006396,105460.0,105450.0,0.25483022]
[1749974854299,1.01562396,105460.0,105450.0,0.25483022]
[1749974855341,0.98736789,105460.0,105450.0,0.24592939]
[1749974855549,0.59113599,105460.0,105450.0,0.26431311]
[1749974855756,0.98736789,105460.0,105450.0,0.27379591]
[1749974857046,0.59113599,105460.0,105450.0,0.27379591]
[1749974857249,1.04420438,105460.0,105450.0,0.27379591]
[1749974857446,1.04420438,105460.0,105450.0,0.25483022]
[1749974857861,1.04420438,105460.0,105450.0,0.26430294]
[1749974858056,1.04420438,105460.0,105450.0,0.25541228]
[1749974858202,1.04420438,105460.0,105450.0,0.26430294]
[1749974859152,1.04420438,105460.0,105450.0,0.25541228]
[1749974859350,1.04420438,105460.0,105450.0,0.26430294]
[1749974859901,1.04420438,105460.0,105450.0,0.25541228]
[1749974860100,1.04420438,105460.0,105450.0,0.26430294]
[1749974860446,1.19860438,105460.0,105450.0,0.26430292]
[1749974861288,1.2480694,105460.0,105450.0,0.26430292]
[1749974861697,1.2480694,105460.0,105450.0,0.25541228]
[1749974862157,1.2480694,105460.0,105450.0,0.24592939]
[1749974862677,1.2792694,105460.0,105450.0,0.007]
[1749974863088,1.2636694,105460.0,105450.0,0.007]
[1749974863333,1.22593304,105460.0,105450.0,0.007]
[1749974863522,1.26380168,105460.0,105450.0,0.007]
[1749974863946,1.24820168,105460.0,105450.0,0.007]
[1749974865448,1.25768376,105460.0,105450.0,0.19666334]
[1749974865657,1.25768376,105460.0,105450.0,0.21562939]
[1749974865866,1.25768376,105460.0,105450.0,0.20614641]
[1749974866872,0.81198684,105460.0,105450.0,0.21562939]
[1749974867073,1.25768376,105460.0,105450.0,0.22511219]
[1749974868043,1.10328376,105460.0,105450.0,0.22511219]
[1749974868243,1.25752376,105460.0,105450.0,0.24071219]
[1749974868514,0.90415632,105460.0,105450.0,0.25967743]
[1749974868722,0.90415632,105460.0,105450.0,0.27467743]
[1749974868723,1.04892868,105460.0,105450.0,0.27467743]
[1749974869529,1.05841013,105460.0,105450.0,0.27467743]
[1749974869956,1.06789212,105460.0,105450.0,0.27467743]
[1749974870290,1.05841013,105460.0,105450.0,0.27467743]
[1749974870485,1.06789212,105460.0,105450.0,0.27467743]
[1749974871700,0.91365212,105460.0,105450.0,0.27467743]
[1749974872124,1.06793212,105460.0,105450.0,0.27467743]
[1749974872795,0.6222352,105460.0,105450.0,0.27467743]
[1749974872989,1.06793212,105460.0,105450.0,0.27467743]
[1749974873155,0.6222352,105460.0,105450.0,0.27467743]
[1749974873376,1.06793212,105460.0,105450.0,0.27467743]
[1749974873967,1.05845013,105460.0,105450.0,0.27467743]
[1749974874168,1.06793212,105460.0,105450.0,0.27467743]
[1749974874380,1.05845013,105460.0,105450.0,0.27467743]
[1749974874752,1.03006348,105460.0,105450.0,0.27467743]
[1749974875839,1.03954556,105460.0,105450.0,0.27467743]
[1749974876045,0.88526556,105460.0,105450.0,0.27467743]
[1749974876657,0.87578348,105460.0,105450.0,0.27467743]
[1749974877088,0.88526556,105460.0,105450.0,0.27467743]
[1749974877716,0.88526556,105460.0,105450.0,0.25967743]
[1749974877930,0.43008656,105460.0,105450.0,0.25967743]
[1749974878145,0.87578348,105460.0,105450.0,0.25967743]
[1749974878764,0.88526556,105460.0,105450.0,0.25967743]
[1749974878970,0.43008656,105460.0,105450.0,0.27607743]
[1749974879192,0.88526556,105460.0,105450.0,0.27607743]
[1749974879425,0.87578348,105460.0,105450.0,0.27607743]
[1749974880041,0.88526556,105460.0,105450.0,0.2665949]
[1749974880248,0.88526619,105460.0,105450.0,0.25967752]
[1749974880456,0.87578402,105460.0,105450.0,0.25967698]
[1749974880635,0.88526619,105460.0,105450.0,0.25967698]
[1749974881454,0.88526619,105460.0,105450.0,0.24407698]
[1749974881857,0.88526673,105460.0,105450.0,0.24407698]
[1749974883149,0.88526673,105460.0,105450.0,0.23459445]
[1749974884282,0.88526673,105460.0,105450.0,0.22511183]
[1749974884471,0.87578492,105460.0,105450.0,0.22511183]
[1749974884702,0.430088,105460.0,105450.0,0.22511183]
[1749974884830,0.87578492,105460.0,105450.0,0.22511183]
[1749974885629,0.89057297,105460.0,105450.0,0.22511183]
[1749974885880,1.05594802,105460.0,105450.0,0.007]
[1749974886093,1.05594802,105460.0,105450.0,0.21562912]
[1749974886094,0.66341974,105460.0,105450.0,0.21562912]
[1749974886316,0.672902,105460.0,105450.0,0.22511183]
[1749974886524,0.46795664,105460.0,105450.0,0.22511183]
[1749974886737,0.91365356,105460.0,105450.0,0.25623307]
[1749974887152,0.91365356,105460.0,105450.0,0.21562912]
[1749974887557,0.9041713,105460.0,105450.0,0.21562912]
[1749974887757,1.10329892,105460.0,105450.0,0.22511183]
[1749974888374,1.10329892,105460.0,105450.0,0.21562921]
[1749974888796,0.9041713,105460.0,105450.0,0.22511192]
[1749974889002,0.9041713,105460.0,105450.0,0.23459454]
[1749974889208,0.91365356,105460.0,105450.0,0.23459454]
[1749974889622,0.46795664,105460.0,105450.0,0.24407707]
[1749974889855,0.91365356,105460.0,105450.0,0.24407707]
[1749974890654,0.46795664,105460.0,105450.0,0.24407707]
[1749974890882,0.91365356,105460.0,105450.0,0.24407707]
[1749974891824,0.9041713,105460.0,105450.0,0.24407707]
[1749974892244,0.91365356,105460.0,105450.0,0.23459454]
[1749974893271,0.91365356,105460.0,105450.0,0.24407707]
[1749974894013,0.9041713,105460.0,105450.0,0.24407707]
[1749974896921,0.89468913,105460.0,105450.0,0.24407707]
[1749974897160,0.43002814,105460.0,105450.0,0.31053691]
[1749974897373,0.43002814,105460.0,105450.0,0.87855399]
[1749974897374,0.3921595,105460.0,105450.0,0.87855399]
[1749974897586,0.02375427,105460.0,105450.0,0.9893366]
[1749974898012,0.001,105460.0,105450.0,0.9893366]
[1749974899411,0.001,105460.0,105450.0,1.43503352]
[1749974899629,0.001,105460.0,105450.0,1.08548582]
[1749974901204,0.001,105460.0,105450.0,1.11398482]
[1749974901430,0.001,105460.0,105450.0,0.6682879]
[1749974901655,0.001,105460.0,105450.0,1.11398482]
[1749974903058,0.001,105460.0,105450.0,1.09398482]
[1749974903976,0.001,105460.0,105450.0,1.06548582]
[1749974904878,0.001,105460.0,105450.0,1.10668582]
[1749974907910,0.001,105460.0,105450.0,1.55238274]
[1749974908132,0.001,105460.0,105450.0,1.10668582]
[1749974908346,0.001,105460.0,105450.0,0.6609489]
[1749974908559,0.001,105460.0,105450.0,1.10664582]
[1749974908996,0.001,105460.0,105450.0,0.4629089]
[1749974909218,0.001,105460.0,105450.0,1.10664582]
[1749974910346,0.001,105460.0,105450.0,1.10668582]
[1749974911435,0.001,105460.0,105450.0,0.36675968]
[1749974911670,0.44669692,105460.0,105450.0,0.53285968]
[1749974912375,0.001,105460.0,105450.0,0.53285968]
[1749974912822,0.001,105460.0,105450.0,0.54945968]
[1749974913463,0.001,105460.0,105450.0,0.35145968]
[1749974913671,0.001,105460.0,105450.0,0.54945968]
[1749974914083,0.44669692,105460.0,105450.0,0.54945968]
[1749974914292,0.44669692,105460.0,105450.0,0.35145968]
[1749974914508,0.44669692,105460.0,105450.0,0.53277968]
[1749974914725,0.44669692,105460.0,105450.0,0.33485968]
[1749974915150,0.47979692,105460.0,105450.0,0.53277968]
[1749974915582,0.44669692,105460.0,105450.0,0.53277968]
[1749974920639,0.001,105460.0,105450.0,0.53277968]
[1749974923702,0.001,105460.0,105450.0,1.07462582]
[1749974923907,0.001,105460.0,105450.0,1.10492582]
[1749974927298,0.001,105460.0,105450.0,1.05519659]
[1749974932920,0.001,105460.0,105450.0,0.36515968]
[1749974933112,0.001,105460.0,105450.0,0.56247968]
[1749974933330,0.001,105460.0,105450.0,0.95844737]
[1749974935186,0.001,105460.0,105450.0,0.35005968]
[1749974935395,0.001,105460.0,105450.0,0.33485968]
[1749974935608,0.001,105460.0,105450.0,0.53225968]
[1749974935814,0.341,105460.0,105450.0,0.53225968]
[1749974935965,0.341,105460.0,105450.0,0.33485968]
[1749974936182,0.341,105460.0,105450.0,0.53225968]
[1749974936994,0.3572,105460.0,105450.0,0.53225968]
[1749974937781,0.3572,105460.0,105450.0,0.33485968]
[1749974938023,0.3572,105460.0,105450.0,0.53225968]
[1749974938845,0.341,105460.0,105450.0,0.53225968]
[1749974943249,0.341,105460.0,105450.0,0.53221968]
[1749974946662,0.341,105460.0,105450.0,0.53217968]
[1749974947253,0.78658147,105460.0,105450.0,0.53217968]
[1749974947868,0.341,105460.0,105450.0,0.53217968]
[1749974948115,0.78658147,105460.0,105450.0,0.53217968]
[1749974951223,0.341,105460.0,105450.0,0.53217968]
[1749974951437,0.78658147,105460.0,105450.0,0.53217968]
[1749974951642,0.80278147,105460.0,105450.0,0.53217968]
[1749974952254,0.80278147,105460.0,105450.0,0.53197968]
[1749974952686,0.81798147,105460.0,105450.0,0.53197968]
[1749974953133,0.78658147,105460.0,105450.0,0.53197968]
[1749974956119,0.78658147,105460.0,105450.0,0.53229968]
[1749974956531,0.80168147,105460.0,105450.0,0.53229968]
[1749974958248,0.3561,105460.0,105450.0,0.53229968]
[1749974958457,0.80168147,105460.0,105450.0,0.53229968]
[1749974959712,0.3561,105460.0,105450.0,0.53229968]
[1749974959948,0.80168147,105460.0,105450.0,0.53229968]
[1749974962287,0.3561,105460.0,105450.0,0.53229968]
[1749974962499,0.80168147,105460.0,105450.0,0.53229968]
[1749974964200,0.4234964,105460.0,105450.0,0.51317453]
[1749974964418,0.85011398,105460.0,105450.0,0.52265706]
[1749974964658,0.87855959,105460.0,105450.0,0.52265706]
[1749974964878,0.87855959,105460.0,105450.0,0.51321453]
[1749974965104,0.87855959,105460.0,105450.0,0.52269706]
[1749974965355,0.0321,105450.0,105440.0,0.19916458]
[1749974965584,0.48716391,105450.0,105440.0,0.51791071]
[1749974965795,0.47768147,105450.0,105440.0,0.51791071]
[1749974966020,0.47096382,105450.0,105440.0,0.51791071]
[1749974966235,0.46148147,105450.0,105440.0,0.51911071]
[1749974966469,0.47096382,105450.0,105440.0,0.51911071]
[1749974966691,0.02538235,105450.0,105440.0,0.51911071]
[1749974966918,0.47096382,105450.0,105440.0,0.51911071]
[1749974967590,0.49664635,105450.0,105440.0,0.51911071]
[1749974967804,0.04158235,105450.0,105440.0,0.51911071]
[1749974968018,0.48716382,105450.0,105440.0,0.51911071]
[1749974968248,0.48716382,105450.0,105440.0,0.52211071]
[1749974968496,0.04158235,105450.0,105440.0,0.52211071]
[1749974968719,0.48916382,105450.0,105440.0,0.52311071]
[1749974969142,0.46348147,105450.0,105440.0,0.52311071]
[1749974969365,0.47296382,105450.0,105440.0,0.52311071]
[1749974970584,0.47968147,105450.0,105440.0,0.52311071]
[1749974971290,0.48916391,105450.0,105440.0,0.52311071]
[1749974971738,0.05306506,105450.0,105440.0,0.52311071]
[1749974971958,0.48916391,105450.0,105440.0,0.52311071]
[1749974972617,0.48916391,105450.0,105440.0,0.52343071]
[1749974972838,0.47968147,105450.0,105440.0,0.52343071]
[1749974973058,0.489164,105450.0,105440.0,0.52343071]
[1749974973278,0.49864671,105450.0,105440.0,0.52343071]
[1749974974120,0.47968147,105450.0,105440.0,0.52343071]
[1749974974308,0.48916391,105450.0,105440.0,0.52343071]
[1749974974673,0.04358244,105450.0,105440.0,0.52343071]
[1749974975096,0.489164,105450.0,105440.0,0.52343071]
[1749974975486,0.04358253,105450.0,105440.0,0.32343071]
[1749974975686,0.48244644,105450.0,105440.0,0.59473848]
[1749974975887,0.48244644,105450.0,105440.0,0.52343071]
[1749974976923,0.03686488,105450.0,105440.0,0.52343071]
[1749974977275,0.48244635,105450.0,105440.0,0.52343071]
[1749974979402,0.0179,105450.0,105440.0,0.52343071]
[1749974979617,0.46348147,105450.0,105440.0,0.52343071]
[1749974979833,0.47296391,105450.0,105440.0,0.52343071]
[1749974981146,0.45706391,105450.0,105440.0,0.52343071]
[1749974981355,0.45706382,105450.0,105440.0,0.52343071]
[1749974981568,0.01148235,105450.0,105440.0,0.52343071]
[1749974981800,0.45706382,105450.0,105440.0,0.52343071]
[1749974982008,0.46654626,105450.0,105440.0,0.52343071]
[1749974982773,0.48274626,105450.0,105440.0,0.52343071]
[1749974984054,0.47326382,105450.0,105440.0,0.52343071]
[1749974984673,0.48274635,105450.0,105440.0,0.52343071]
[1749974984891,0.47326382,105450.0,105440.0,0.52343071]
[1749974985292,0.02768235,105450.0,105440.0,0.52343071]
[1749974985502,0.47326382,105450.0,105440.0,0.52343071]
[1749974986270,0.46378147,105450.0,105440.0,0.52343071]
[1749974986495,0.47326382,105450.0,105440.0,0.52343071]
[1749974987327,0.0182,105450.0,105440.0,0.52343071]
[1749974987468,0.47326382,105450.0,105440.0,0.52343071]
[1749974987862,0.002,105450.0,105440.0,1.0651614]
[1749974988064,0.002,105450.0,105440.0,1.0980614]
[1749974988680,0.342,105450.0,105440.0,1.0980614]
[1749974990303,0.002,105450.0,105440.0,1.0980614]
[1749974991436,0.002,105450.0,105440.0,1.04850813]
[1749974992908,0.002,105450.0,105440.0,1.49401633]
[1749974993122,0.002,105450.0,105440.0,1.09798813]
[1749974994138,0.00499965,105470.0,105460.0,0.25089106]
[1749974994315,0.00499965,105470.0,105460.0,0.55317732]
[1749974994717,0.00499965,105470.0,105460.0,0.55267732]
[1749974996231,0.00999965,105470.0,105460.0,0.55367732]
[1749974997810,0.00999965,105470.0,105460.0,0.50627282]
[1749975010702,0.00999965,105470.0,105460.0,0.48987282]
[1749975012334,0.00999965,105470.0,105460.0,0.47347282]
[1749975013361,0.79545757,105470.0,105460.0,0.47347282]
[1749975014587,0.34999965,105470.0,105460.0,0.47347282]
[1749975015000,0.79545757,105470.0,105460.0,0.47347282]
[1749975015433,0.34999965,105470.0,105460.0,0.47347282]
[1749975015662,0.79545757,105470.0,105460.0,0.47347282]
[1749975015872,0.81125757,105470.0,105460.0,0.31483282]
[1749975016101,0.81125757,105470.0,105460.0,0.51431282]
[1749975018819,0.81125757,105470.0,105460.0,0.31483282]
[1749975019037,0.81125757,105470.0,105460.0,0.51419282]
[1749975019284,0.81125757,105470.0,105460.0,0.31483282]
[1749975019489,0.82645757,105470.0,105460.0,0.51415282]
[1749975020925,0.83593813,105470.0,105460.0,0.51415282]
[1749975023288,0.84541886,105470.0,105460.0,0.51415282]
[1749975023500,0.85489986,105470.0,105460.0,0.32937367]
[1749975023708,0.84541886,105470.0,105460.0,0.52849367]
[1749975023914,0.85489977,105470.0,105460.0,0.52849367]
[1749975024849,0.86438095,105470.0,105460.0,0.11178261]
[1749975025077,1.05779581,105470.0,105460.0,0.0428]
[1749975025290,1.05779581,105470.0,105460.0,0.2002]
[1749975025510,1.0483149,105470.0,105460.0,0.2002]
[1749975026391,1.0483149,105470.0,105460.0,0.20968226]
[1749975026610,1.0483149,105470.0,105460.0,0.4088097]
[1749975026827,1.0483149,105470.0,105460.0,0.41829169]
[1749975027492,1.0483149,105470.0,105460.0,0.39932762]
[1749975028007,1.0483149,105470.0,105460.0,0.40880979]
[1749975029136,1.03883372,105470.0,105460.0,0.40880979]
[1749975030290,1.03883372,105470.0,105460.0,0.41829187]
[1749975031388,1.03883372,105470.0,105460.0,0.42777386]
[1749975031593,1.03883372,105470.0,105460.0,0.43725576]
[1749975032228,1.03883372,105470.0,105460.0,0.42777386]
[1749975034131,1.0483149,105470.0,105460.0,0.43725576]
[1749975034452,1.0483149,105470.0,105460.0,0.40880979]
[1749975034668,1.0483149,105470.0,105460.0,0.41829187]
[1749975034884,1.0483149,105470.0,105460.0,0.40880979]
[1749975035336,1.0483149,105470.0,105460.0,0.19996]
[1749975036723,1.0483149,105470.0,105460.0,0.20944226]
[1749975036927,1.0483149,105470.0,105460.0,0.04284]
[1749975037126,1.0483149,105470.0,105460.0,0.19996]
[1749975040454,1.0483149,105470.0,105460.0,0.04284]
[1749975048811,0.60285698,105470.0,105460.0,0.04284]
[1749975049197,1.0483149,105470.0,105460.0,0.04284]
[1749975050508,1.0483149,105470.0,105460.0,0.24196762]
[1749975052355,1.07673713,105470.0,105460.0,0.24196762]
[1749975052800,1.0483149,105470.0,105460.0,0.25144961]
[1749975054487,1.07673713,105470.0,105460.0,0.25144961]
[1749975055771,1.0483149,105470.0,105460.0,0.25144961]
[1749975055978,1.0483149,105470.0,105460.0,0.26093151]
[1749975056787,1.07673713,105470.0,105460.0,0.26093151]
[1749975057360,1.0483149,105470.0,105460.0,0.26093151]
[1749975058245,1.07673713,105470.0,105460.0,0.26093151]
[1749975058435,1.02556613,105470.0,105460.0,0.26093151]
[1749975058636,1.0767534,105470.0,105460.0,0.26093151]
[1749975058934,1.0767534,105470.0,105460.0,0.27041332]
[1749975059352,0.85296956,105470.0,105460.0,0.27989495]
[1749975059568,0.87193147,105470.0,105460.0,0.27989495]
[1749975059844,0.91162833,105480.0,105470.0,0.23261123]
[1749975059845,0.00960858,105480.0,105470.0,0.23261123]
[1749975060063,0.04821908,105490.0,105480.0,0.24874973]
[1749975060295,0.04821908,105490.0,105480.0,0.57706085]
[1749975060512,0.38821908,105490.0,105480.0,0.57706085]
[1749975060730,0.833677,105490.0,105480.0,0.61838085]
[1749975060950,0.493677,105490.0,105480.0,0.42058085]
[1749975061163,0.493677,105490.0,105480.0,0.61846085]
[1749975061386,0.04821908,105490.0,105480.0,0.61846085]
[1749975061597,0.38921908,105490.0,105480.0,0.62246085]
[1749975062031,0.39894614,105490.0,105480.0,0.62246085]
[1749975062693,0.79478607,105490.0,105480.0,0.34899149]
[1749975062942,0.79478607,105490.0,105480.0,0.53071234]
[1749975063149,0.79478607,105490.0,105480.0,0.53371234]
[1749975065239,0.79478607,105490.0,105480.0,0.53363234]
[1749975066335,0.39894614,105490.0,105480.0,0.53363234]
[1749975066542,0.79478607,105490.0,105480.0,0.53363234]
[1749975067176,0.83952361,105490.0,105480.0,0.31181183]
[1749975067383,0.85532361,105490.0,105480.0,0.51909185]
[1749975067595,0.84584422,105490.0,105480.0,0.53809162]
[1749975069053,0.45948368,105490.0,105480.0,0.32129185]
[1749975069260,0.86480309,105490.0,105480.0,0.32129185]
[1749975069472,1.04491594,105490.0,105480.0,0.20608987]
[1749975069678,1.04491594,105490.0,105480.0,0.22380085]
[1749975070139,1.03543655,105490.0,105480.0,0.21432047]
[1749975070344,1.02595707,105490.0,105480.0,0.04828]
[1749975070552,1.02595707,105490.0,105480.0,0.007]
[1749975070757,1.02595707,105490.0,105480.0,0.20488]
[1749975071910,1.02495707,105490.0,105480.0,0.20088]
[1749975072124,1.02595707,105490.0,105480.0,0.19988]
[1749975072574,1.02595707,105490.0,105480.0,0.20188]
[1749975073166,1.04862316,105490.0,105480.0,0.20188]
[1749975073410,1.04862273,105490.0,105480.0,0.20188]
[1749975074674,1.02595707,105490.0,105480.0,0.20188]
[1749975074897,0.82322388,105490.0,105480.0,0.52803408]
[1749975075104,1.01281531,105490.0,105480.0,0.52803408]
[1749975075712,1.02881531,105490.0,105480.0,0.47655905]
[1749975076502,1.02881531,105490.0,105480.0,0.48603925]
[1749975077889,1.01933628,105490.0,105480.0,0.47655905]
[1749975079692,1.03573628,105490.0,105480.0,0.47655905]
[1749975079897,1.03573628,105490.0,105480.0,0.47655914]
[1749975080121,1.02625698,105490.0,105480.0,0.47655914]
[1749975080910,1.03515016,105490.0,105480.0,0.47655914]
[1749975081113,1.02625698,105490.0,105480.0,0.47655914]
[1749975081316,1.03515016,105490.0,105480.0,0.48603934]
[1749975081563,1.02625698,105490.0,105480.0,0.48603934]
[1749975081966,1.03515029,105490.0,105480.0,0.48603934]
[1749975082399,1.02625698,105490.0,105480.0,0.48603934]
[1749975082605,1.03515027,105490.0,105480.0,0.48603934]
[1749975082814,1.03515027,105490.0,105480.0,0.27746936]
[1749975083024,1.0167775,105490.0,105480.0,0.27746936]
[1749975083234,1.0483587,105490.0,105480.0,0.07958936]
[1749975083443,1.04835867,105490.0,105480.0,0.27714936]
[1749975083683,1.03946542,105490.0,105480.0,0.27714936]
[1749975088705,1.03946542,105490.0,105480.0,0.27706936]
[1749975090957,1.02306542,105490.0,105480.0,0.27706936]
[1749975092269,0.62722549,105490.0,105480.0,0.27706936]
[1749975092485,1.02306542,105490.0,105480.0,0.32847942]
[1749975092962,1.02306542,105490.0,105480.0,0.27706936]
[1749975093399,1.02306542,105490.0,105480.0,0.48563943]
[1749975094090,1.02306542,105490.0,105480.0,0.48563961]
[1749975095125,1.00706542,105490.0,105480.0,0.48563961]
[1749975095544,1.02346542,105490.0,105480.0,0.48559961]
[1749975095750,1.03956542,105490.0,105480.0,0.5559665]
[1749975096221,1.03956542,105490.0,105480.0,0.48559961]
[1749975097537,1.03956542,105490.0,105480.0,0.27702936]
[1749975099351,1.06800279,105490.0,105480.0,0.27702936]
[1749975099765,1.0768967,105490.0,105480.0,0.27702936]
[1749975100186,1.0768967,105490.0,105480.0,0.47611923]
[1749975100853,1.07689713,105490.0,105480.0,0.47611923]
[1749975101315,1.06800279,105490.0,105480.0,0.47611923]
[1749975101551,1.07689714,105490.0,105480.0,0.47611923]
[1749975101789,1.07689715,105490.0,105480.0,0.47611923]
[1749975102286,1.07699355,105490.0,105480.0,0.47611923]
[1749975102492,1.07699435,105490.0,105480.0,0.47611923]
[1749975102696,1.0769948,105490.0,105480.0,0.47611923]
[1749975102910,1.07699522,105490.0,105480.0,0.47611923]
[1749975103113,1.07699516,105490.0,105480.0,0.27702936]
[1749975103319,1.07699419,105490.0,105480.0,0.27702936]
[1749975103523,1.07699425,105490.0,105480.0,0.27702936]
[1749975103931,1.07699418,105490.0,105480.0,0.27702936]
[1749975104157,1.06809864,105490.0,105480.0,0.27702936]
[1749975106796,1.06809864,105490.0,105480.0,0.47611914]
[1749975107663,1.06809864,105490.0,105480.0,0.46663876]
[1749975108958,1.05199864,105490.0,105480.0,0.47551923]
[1749975109855,1.05199864,105490.0,105480.0,0.28590983]
[1749975110337,1.05199864,105490.0,105480.0,0.27642936]
[1749975112400,0.65615871,105490.0,105480.0,0.47551923]
[1749975112656,1.02354245,105490.0,105480.0,0.37583961]
[1749975112879,1.02354245,105490.0,105480.0,0.17674983]
[1749975113316,1.07317946,105490.0,105480.0,0.17674983]
[1749975113522,0.62770252,105490.0,105480.0,0.17674983]
[1749975113732,1.07317946,105490.0,105480.0,0.16726936]
[1749975114169,1.07317946,105490.0,105480.0,0.17674983]
[1749975114574,1.08207756,105490.0,105480.0,0.17674983]
[1749975115149,1.07317946,105490.0,105480.0,0.17674983]
[1749975115752,1.08207756,105490.0,105480.0,0.17674983]
[1749975115956,1.07317946,105490.0,105480.0,0.17674983]
[1749975116279,1.08207756,105490.0,105480.0,0.17624983]
[1749975116496,1.06567756,105490.0,105480.0,0.17624983]
[1749975117106,0.62968019,105490.0,105480.0,0.51318054]
[1749975117337,1.06625903,105490.0,105480.0,0.48322888]
[1749975117783,1.06625903,105490.0,105480.0,0.46742888]
[1749975117975,0.62078209,105490.0,105480.0,0.45092888]
[1749975118199,1.06625903,105490.0,105480.0,0.45092888]
[1749975118613,1.06625903,105490.0,105480.0,0.37533952]
[1749975118758,1.53713403,105490.0,105480.0,0.39564987]
[1749975118966,1.53713403,105490.0,105480.0,0.40513025]
[1749975119353,1.09165709,105490.0,105480.0,0.40513025]
[1749975119803,1.08275903,105490.0,105480.0,0.40513025]
[1749975120114,1.09165709,105490.0,105480.0,0.40513025]
[1749975120986,1.08275903,105490.0,105480.0,0.40513025]
[1749975121193,1.09165709,105490.0,105480.0,0.40513025]
[1749975121391,1.08275903,105490.0,105480.0,0.40513025]
[1749975122604,1.11121522,105490.0,105480.0,0.19636]
[1749975122819,1.12661522,105490.0,105480.0,0.19636]
[1749975123225,1.13551225,105490.0,105480.0,0.19636]
[1749975123431,1.13551228,105490.0,105480.0,0.19636]
[1749975124037,1.57209216,105490.0,105480.0,0.19636]
[1749975124238,1.58098922,105490.0,105480.0,0.19636]
[1749975124662,1.58098921,105490.0,105480.0,0.19636]
[1749975124869,0.0094802,105480.0,105470.0,0.24058911]
[1749975125072,0.9326795,105480.0,105470.0,0.54259214]
[1749975125280,0.94215943,105480.0,105470.0,0.54259214]
[1749975125488,0.95163981,105480.0,105470.0,0.54259214]
[1749975126316,0.95263981,105480.0,105470.0,0.54659214]
[1749975126520,0.96211974,105480.0,105470.0,0.54659214]
[1749975127768,0.96211974,105480.0,105470.0,0.54959214]
[1749975128177,0.95263936,105480.0,105470.0,0.54959214]
[1749975131575,0.93367842,105480.0,105470.0,0.54959214]
[1749975131762,0.48820148,105480.0,105470.0,0.54959214]
[1749975131962,0.93367842,105480.0,105470.0,0.54959214]
[1749975132163,0.4976815,105480.0,105470.0,0.54959214]
[1749975133054,0.48820139,105480.0,105470.0,0.54959214]
[1749975133256,0.49768141,105480.0,105470.0,0.54959214]
[1749975133828,0.48820139,105480.0,105470.0,0.6141352]
[1749975134035,0.49768141,105480.0,105470.0,0.6141352]
[1749975134299,0.49768141,105480.0,105470.0,0.54959214]
[1749975135069,0.48820139,105480.0,105470.0,0.54959214]
[1749975135235,0.49768141,105480.0,105470.0,0.54959214]
[1749975136639,0.95263918,105480.0,105470.0,0.40206874]
[1749975136859,1.15814858,105480.0,105470.0,0.42103074]
[1749975137267,1.16762905,105480.0,105470.0,0.42103074]
[1749975137479,1.15814921,105480.0,105470.0,0.42103074]
[1749975137686,1.48224921,105480.0,105470.0,0.007]
[1749975137850,1.49558908,105480.0,105470.0,0.004]
[1749975138049,0.01896497,105450.0,105440.0,0.42373595]
[1749975138304,1.25940165,105450.0,105440.0,0.52011899]
[1749975138690,1.24991885,105450.0,105440.0,0.53465984]
[1749975138868,1.24991885,105450.0,105440.0,0.56615984]
[1749975139066,1.24991885,105450.0,105440.0,0.55161899]
[1749975139315,1.24991885,105450.0,105440.0,0.55157899]
[1749975139519,0.81492471,105450.0,105440.0,0.56811984]
[1749975140045,0.81492462,105450.0,105440.0,0.56811984]
[1749975140252,0.80544191,105450.0,105440.0,0.56811984]
[1749975140715,0.79595938,105450.0,105440.0,0.58237287]
[1749975141324,0.73719449,105450.0,105440.0,0.58237287]
[1749975141732,0.74667693,105450.0,105440.0,0.58337287]
[1749975142713,0.74667693,105450.0,105440.0,0.56911984]
[1749975143031,0.39719449,105450.0,105440.0,0.56911984]
[1749975144185,0.001,105450.0,105440.0,0.56911984]
[1749975144416,0.39719449,105450.0,105440.0,0.56911984]
[1749975144619,0.001,105450.0,105440.0,0.56911984]
[1749975145022,0.01048235,105450.0,105440.0,0.56911984]
[1749975146977,0.01996488,105450.0,105440.0,0.56911984]
[1749975147178,0.01048235,105450.0,105440.0,0.56911984]
[1749975148103,0.01048235,105450.0,105440.0,0.64499652]
[1749975148741,0.01048235,105450.0,105440.0,0.44891652]
[1749975148944,0.01048235,105450.0,105440.0,0.64499652]
[1749975149350,0.001,105450.0,105440.0,0.64499652]
[1749975149562,0.01048235,105450.0,105440.0,0.64499652]
[1749975150985,0.01996479,105450.0,105440.0,0.64499652]
[1749975153629,0.01048235,105450.0,105440.0,0.64499652]
[1749975153997,0.01048235,105450.0,105440.0,0.56911984]
[1749975156278,0.01996479,105450.0,105440.0,0.56911984]
[1749975156735,0.01048235,105450.0,105440.0,0.56911984]
[1749975157146,0.001,105450.0,105440.0,0.56911984]
[1749975157334,0.01048235,105450.0,105440.0,0.56911984]
[1749975157775,0.01048235,105450.0,105440.0,0.64499652]
[1749975159131,0.001,105450.0,105440.0,0.64499652]
[1749975159729,0.01048235,105450.0,105440.0,0.64499652]
[1749975160132,0.001,105450.0,105440.0,0.64499652]
[1749975160334,0.01048235,105450.0,105440.0,0.64499652]
[1749975161501,0.001,105450.0,105440.0,0.64499652]
[1749975161707,0.001,105450.0,105440.0,0.56911984]
[1749975163375,0.44669526,105450.0,105440.0,0.56911984]
[1749975164740,0.45617761,105450.0,105440.0,0.56911984]
[1749975165090,0.44669526,105450.0,105440.0,0.56911984]
[1749975165912,0.001,105450.0,105440.0,0.56911984]
[1749975166120,0.44669526,105450.0,105440.0,0.64499652]
[1749975167358,0.44669526,105450.0,105440.0,0.55341984]
[1749975172892,0.001,105450.0,105440.0,0.55341984]
[1749975173142,0.44669526,105450.0,105440.0,0.55341984]
[1749975176399,0.89239052,105450.0,105440.0,0.53761984]
[1749975176604,0.45617761,105450.0,105440.0,0.53761984]
[1749975176965,0.44669526,105450.0,105440.0,0.53761984]
[1749975177878,0.4561777,105450.0,105440.0,0.53761984]
[1749975178678,0.46566059,105450.0,105440.0,0.53761984]
[1749975178879,0.47177779,105450.0,105440.0,0.53761984]
[1749975179966,0.4717777,105450.0,105440.0,0.53761984]
[1749975180385,0.02608244,105450.0,105440.0,0.53761984]
[1749975180526,0.4561777,105450.0,105440.0,0.53761984]
[1749975181300,0.44669526,105450.0,105440.0,0.53761984]
[1749975181504,0.45617779,105450.0,105440.0,0.53761984]
[1749975181883,0.4561777,105450.0,105440.0,0.53761984]
[1749975187581,0.44669526,105450.0,105440.0,0.53761984]
[1749975187989,0.4561777,105450.0,105440.0,0.53761984]
[1749975189135,0.44669526,105450.0,105440.0,0.53761984]
[1749975190253,0.45617761,105450.0,105440.0,0.53761984]
[1749975190600,0.44669526,105450.0,105440.0,0.53761984]
[1749975191194,0.45617761,105450.0,105440.0,0.53761984]
[1749975192511,0.01048235,105450.0,105440.0,0.53761984]
[1749975192726,0.45617761,105450.0,105440.0,0.53761984]
[1749975192948,0.01996488,105450.0,105440.0,0.53761984]